bitfinex-derivatives/quotes_SOLF0:USTF0_20241008
["timestamp","ask_amount","ask_price","bid_price","bid_amount"]
[1728392059465,0.12502,143.81,143.78,15.53]
[1728392059466,14.29302,143.81,143.78,3.4787]
[1728392059662,14.28848679,143.81,143.78,3.4787]
[1728392059960,10.81502,143.81,143.78,3.4787]
[1728392061059,14.29312,143.81,143.78,3.4787]
[1728392061255,0.12502,143.81,143.8,3.4782]
[1728392063559,0.12502,143.81,143.8,14.1682]
[1728392066157,0.12502,143.87,143.8,10.69]
[1728392066364,0.12502,143.87,143.84,10.69]
[1728392066567,0.12502,143.87,143.85,10.69]
[1728392066966,0.12502,143.87,143.86,14.1668]
[1728392067769,0.12502,143.87,143.86,3.4768]
[1728392070088,10.81502,143.87,143.81,1.3402]
[1728392070286,10.69,143.86,143.82,3.4776]
[1728392070684,10.69,143.84,143.82,3.4776]
[1728392071278,10.69,143.84,143.83,3.4775]
[1728392071482,10.69,143.84,143.81,10.69]
[1728392071984,10.69,143.84,143.82,3.4776]
[1728392072580,3.4769,143.86,143.83,3.4775]
[1728392072775,10.69,143.85,143.83,3.4775]
[1728392073986,4.96502,143.87,143.84,10.69]
[1728392074889,4.96502,143.87,143.85,3.4769]
[1728392075489,8.44162,143.87,143.85,3.4769]
[1728392078389,4.96502,143.87,143.85,3.4769]
[1728392079589,10.69,143.86,143.8,15.53]
[1728392079786,10.69,143.84,143.79,16.8573]
[1728392079982,14.1674,143.84,143.81,3.4778]
[1728392080184,14.1674,143.84,143.79,16.8573]
[1728392080692,14.1674,143.84,143.81,3.4778]
[1728392080896,14.1674,143.84,143.79,16.8573]
[1728392081092,14.1674,143.84,143.8,3.4781]
[1728392081284,14.1674,143.84,143.79,16.8573]
[1728392082387,14.1674,143.84,143.81,3.4778]
[1728392082587,14.1674,143.84,143.79,16.8573]
[1728392083082,10.69,143.85,143.8,10.69]
[1728392083390,10.69,143.85,143.83,3.4773]
[1728392084496,10.69,143.85,143.8,10.69]
[1728392084497,3.4773,143.84,143.8,10.69]
[1728392085495,3.4773,143.84,143.82,3.4777]
[1728392086496,14.1671,143.85,143.82,3.4777]
[1728392086699,10.69,143.85,143.82,3.4777]
[1728392087299,14.1671,143.85,143.82,3.4777]
[1728392088293,4.96502,143.87,143.81,3.4778]
[1728392088294,3.4775,143.83,143.81,3.4778]
[1728392089282,19.0074,143.84,143.81,3.4778]
[1728392100097,19.08575662,143.84,143.79,4.84]
[1728392100300,10.69,143.82,143.8,3.4781]
[1728392101622,10.69,143.82,143.74,67.23866044]
[1728392101810,10.69,143.8,143.78,3.4786]
[1728392102794,10.69,143.79,143.77,3.4789]
[1728392103999,14.1685,143.79,143.77,3.4789]
[1728392104202,14.1685,143.79,143.76,3.4791]
[1728392104404,10.69,143.79,143.76,3.4791]
[1728392104597,10.69,143.79,143.75,0.12502]
[1728392104598,10.69,143.78,143.75,0.12502]
[1728392104789,10.69,143.79,143.75,10.81502]
[1728392104994,19.02826752,143.81,143.76,10.69]
[1728392105201,22.50636752,143.81,143.76,10.69]
[1728392105804,10.69,143.8,143.78,3.4786]
[1728392106006,10.69,143.8,143.76,10.69]
[1728392106209,14.1683,143.8,143.76,10.69]
[1728392106705,14.1683,143.8,143.77,3.4788]
[1728392108322,14.1683,143.8,143.78,3.4786]
[1728392108606,10.69,143.8,143.75,10.81502]
[1728392108799,10.69,143.8,143.78,3.4786]
[1728392109903,13.4671,143.83,143.8,3.478]
[1728392110103,4.84,143.82,143.78,10.69]
[1728392110606,4.84,143.82,143.8,3.478]
[1728392111103,8.3178,143.82,143.8,3.478]
[1728392111606,19.0078,143.82,143.77,10.69]
[1728392111806,3.478,143.81,143.79,3.4783]
[1728392113010,10.69,143.8,143.75,1.55792]
[1728392113199,10.69,143.78,143.75,0.12502]
[1728392113402,10.69,143.79,143.75,0.12502]
[1728392113904,10.69,143.79,143.77,3.4788]
[1728392116209,14.1685,143.79,143.77,3.4788]
[1728392117208,14.1685,143.79,143.75,0.12502]
[1728392117410,14.1687,143.78,143.76,3.4791]
[1728392117719,10.69,143.78,143.75,0.12502]
[1728392117912,19.0086,143.79,143.75,0.12502]
[1728392118414,19.0086,143.79,143.76,3.4791]
[1728392120713,10.69,143.78,143.76,3.4791]
[1728392125718,14.1687,143.78,143.76,3.4791]
[1728392127721,15.53,143.79,143.77,3.4788]
[1728392130907,19.0085,143.79,143.77,3.4788]
[1728392135723,14.1687,143.78,143.76,3.479]
[1728392136839,10.69,143.78,143.75,0.12502]
[1728392137018,14.1689,143.78,143.76,3.4792]
[1728392137220,10.69,143.78,143.75,0.12502]
[1728392138428,3.4789,143.77,143.75,3.60432]
[1728392139220,10.69,143.76,143.75,0.12502]
[1728392141136,10.69,143.76,143.75,3.60442]
[1728392149429,14.1692,143.76,143.75,0.12502]
[1728392149629,15.53,143.76,143.69,0.12502]
[1728392149818,10.69,143.71,143.7,3.4805]
[1728392152237,15.53,143.73,143.69,10.81502]
[1728392152436,4.84,143.73,143.72,3.4802]
[1728392153927,15.53,143.73,143.72,3.4802]
[1728392157338,4.84,143.73,143.72,3.4802]
[1728392160427,15.53,143.73,143.72,3.4802]
[1728392161026,4.84,143.75,143.7,10.69]
[1728392161267,15.53,143.75,143.74,3.4797]
[1728392161840,18.99137212,143.75,143.72,3.48]
[1728392162037,10.69,143.73,143.72,3.48]
[1728392166644,10.69,143.74,143.73,3.4798]
[1728392167335,10.69,143.74,143.69,10.81502]
[1728392167638,10.69,143.72,143.69,0.12502]
[1728392168038,10.69,143.71,143.7,3.4805]
[1728392169042,10.69,143.72,143.7,3.4805]
[1728392169641,10.69,143.71,143.7,3.4805]
[1728392171762,10.69,143.71,143.69,3.60572]
[1728392172141,10.69,143.71,143.69,0.12502]
[1728392173141,10.69,143.71,143.7,3.4806]
[1728392175144,4.84,143.74,143.7,10.69]
[1728392175355,4.84,143.76,143.71,10.69]
[1728392175541,15.53,143.76,143.71,10.69]
[1728392176152,19.0093,143.76,143.71,10.69]
[1728392176540,19.0093,143.76,143.73,3.4797]
[1728392176541,10.69,143.75,143.73,3.4797]
[1728392177953,10.69,143.74,143.69,4.96502]
[1728392178146,10.69,143.74,143.72,3.48]
[1728392179339,14.1697,143.74,143.72,3.48]
[1728392179938,4.84,143.76,143.69,15.65502]
[1728392179939,10.69,143.73,143.71,3.4804]
[1728392180143,14.17,143.73,143.69,4.96502]
[1728392180340,10.69,143.72,143.69,0.12502]
[1728392180854,10.69,143.72,143.71,3.4804]
[1728392182449,10.69,143.72,143.7,3.4805]
[1728392184650,10.69,143.72,143.71,3.4804]
[1728392185554,10.69,143.72,143.7,3.4805]
[1728392187160,3.4806,143.7,143.69,0.12502]
[1728392187454,14.1706,143.7,143.69,0.12502]
[1728392188354,10.69,143.7,143.69,0.12502]
[1728392189662,14.1706,143.7,143.69,0.12502]
[1728392192158,10.69,143.7,143.69,0.12502]
[1728392193460,14.1706,143.7,143.69,0.12502]
[1728392200062,19.0106,143.7,143.69,0.12502]
[1728392200974,15.53,143.7,143.63,0.12502]
[1728392201274,10.69,143.67,143.65,3.4817]
[1728392205670,10.69,143.66,143.65,3.4817]
[1728392206165,10.69,143.66,143.64,3.482]
[1728392207375,14.1716,143.66,143.64,3.482]
[1728392207680,10.69,143.65,143.63,0.12502]
[1728392207880,10.69,143.64,143.63,0.12502]
[1728392208671,10.69,143.64,143.63,3.60732]
[1728392210270,10.69,143.64,143.63,0.12502]
[1728392210775,14.1721,143.64,143.63,0.12502]
[1728392211876,19.0121,143.64,143.63,0.12502]
[1728392215481,4.84,143.67,143.63,0.12502]
[1728392215781,3.4812,143.68,143.66,3.4816]
[1728392215972,8.3212,143.68,143.66,3.4816]
[1728392217077,8.3212,143.68,143.63,0.12502]
[1728392217281,10.69,143.66,143.65,3.4817]
[1728392220379,10.69,143.67,143.66,3.4814]
[1728392222387,4.84,143.68,143.67,3.4814]
[1728392222579,15.53,143.68,143.67,3.4814]
[1728392223283,10.69,143.68,143.67,3.4814]
[1728392223481,1.3884,143.73,143.64,10.69]
[1728392223482,10.69,143.69,143.68,3.4809]
[1728392224585,10.69,143.69,143.63,0.12502]
[1728392224789,10.69,143.67,143.66,3.4815]
[1728392225586,10.69,143.67,143.65,3.4817]
[1728392225783,10.69,143.66,143.65,3.4817]
[1728392230694,10.69,143.66,143.64,3.482]
[1728392231696,10.69,143.66,143.63,0.12502]
[1728392231897,10.69,143.66,143.65,3.4819]
[1728392233397,10.69,143.67,143.66,3.4816]
[1728392234198,10.69,143.67,143.57,0.12502]
[1728392234199,15.53,143.67,143.57,0.12502]
[1728392234500,2.4387,143.66,143.57,0.12502]
[1728392234699,10.69,143.6,143.57,0.12502]
[1728392235099,14.1732,143.6,143.57,0.12502]
[1728392235302,10.69,143.58,143.57,0.12502]
[1728392236802,14.1735,143.58,143.57,0.12502]
[1728392238498,19.0135,143.58,143.57,0.12502]
[1728392244498,15.53,143.58,143.52,6.2454]
[1728392244701,10.69,143.53,143.52,4.8336]
[1728392244904,10.69,143.53,143.52,3.4848]
[1728392246101,15.53,143.55,143.51,0.12502]
[1728392246295,15.53,143.55,143.53,3.4846]
[1728392246609,15.53,143.56,143.52,10.69]
[1728392246802,10.69,143.56,143.54,3.4843]
[1728392249014,10.69,143.55,143.54,3.4843]
[1728392251207,10.69,143.55,143.53,3.4846]
[1728392251414,10.69,143.54,143.53,3.4846]
[1728392252213,10.69,143.54,143.52,3.4849]
[1728392253601,14.1745,143.54,143.51,3.61012]
[1728392254103,14.1748,143.53,143.51,3.61012]
[1728392254523,10.69,143.53,143.51,3.61012]
[1728392256907,10.69,143.54,143.51,0.12502]
[1728392257612,10.69,143.54,143.52,3.4848]
[1728392258017,10.69,143.53,143.52,3.4848]
[1728392258214,10.69,143.53,143.51,3.61012]
[1728392258712,10.69,143.53,143.51,0.12502]
[1728392259013,10.69,143.52,143.51,0.12502]
[1728392259814,10.69,143.52,143.51,3.61022]
[1728392261106,10.69,143.52,143.51,0.12502]
[1728392262441,10.69,143.54,143.51,0.12502]
[1728392263117,10.69,143.54,143.53,3.4848]
[1728392265717,14.1746,143.54,143.52,3.4849]
[1728392266015,10.69,143.53,143.52,3.4849]
[1728392266210,10.69,143.53,143.51,0.12502]
[1728392266411,10.69,143.53,143.51,3.61012]
[1728392269526,10.69,143.52,143.51,0.12502]
[1728392270017,10.69,143.52,143.51,3.61022]
[1728392272520,3.4847,143.54,143.51,3.61022]
[1728392272722,10.69,143.52,143.51,3.61022]
[1728392294642,4.92,143.54,143.51,0.12502]
[1728392294853,15.61,143.55,143.51,0.12502]
[1728392295252,10.69,143.54,143.53,3.4846]
[1728392298446,4.92,143.56,143.55,3.4843]
[1728392298751,15.61,143.56,143.55,3.4843]
[1728392303057,10.69,143.56,143.55,3.4843]
[1728392308769,4.92,143.58,143.57,3.4837]
[1728392308957,15.61,143.58,143.57,3.4837]
[1728392309770,15.61,143.58,143.56,3.4839]
[1728392310067,10.69,143.57,143.56,3.4839]
[1728392310462,10.69,143.57,143.51,1.47882]
[1728392310772,3.4842,143.56,143.54,3.4844]
[1728392310972,4.92,143.58,143.51,1.47882]
[1728392311173,6.2548,143.58,143.51,0.12502]
[1728392311374,10.69,143.53,143.51,0.12502]
[1728392311672,10.69,143.53,143.52,3.485]
[1728392314669,10.69,143.54,143.51,0.12502]
[1728392314869,4.92,143.58,143.52,10.69]
[1728392315169,10.69,143.56,143.52,10.69]
[1728392315363,10.69,143.56,143.54,3.4844]
[1728392316972,10.69,143.56,143.51,0.12502]
[1728392316973,10.69,143.55,143.51,0.12502]
[1728392317277,10.69,143.55,143.53,3.4846]
[1728392318270,10.69,143.55,143.54,3.4845]
[1728392321676,10.69,143.55,143.51,0.12502]
[1728392321879,10.69,143.55,143.52,3.485]
[1728392322404,14.1743,143.55,143.52,3.485]
[1728392322579,14.1743,143.55,143.53,3.4848]
[1728392324382,10.69,143.55,143.53,3.4848]
[1728392325582,14.1744,143.55,143.52,3.485]
[1728392326086,10.69,143.53,143.52,3.485]
[1728392327888,10.69,143.53,143.51,3.61012]
[1728392328090,10.69,143.52,143.51,3.61012]
[1728392329784,10.69,143.52,143.51,0.12502]
[1728392331477,14.175,143.52,143.51,0.12502]
[1728392332381,10.69,143.52,143.51,0.12502]
[1728392336591,4.88,143.55,143.51,0.12502]
[1728392336786,10.69,143.54,143.51,0.12502]
[1728392336993,4.88,143.55,143.51,0.12502]
[1728392337286,15.57,143.55,143.51,0.12502]
[1728392337884,15.57,143.55,143.53,3.4846]
[1728392338273,19.0543,143.55,143.53,3.4846]
[1728392339884,15.57,143.55,143.51,0.12502]
[1728392340122,10.69,143.52,143.51,3.61012]
[1728392342395,14.175,143.52,143.51,0.12502]
[1728392342583,19.055,143.52,143.51,0.12502]
[1728392342785,8.365,143.52,143.51,0.12502]
[1728392342985,19.055,143.52,143.51,0.12502]
[1728392347885,15.57,143.52,143.45,66.06795692]
[1728392348195,3.4856,143.5,143.48,3.4858]
[1728392349296,10.69,143.49,143.48,3.4858]
[1728392349711,10.69,143.49,143.48,3.486]
[1728392353192,19.0559,143.49,143.47,3.4861]
[1728392353393,10.69,143.48,143.45,0.12502]
[1728392353594,10.69,143.46,143.45,0.12502]
[1728392354016,15.55,143.46,143.4,0.12518]
[1728392354300,10.69,143.41,143.4,0.12518]
[1728392354496,10.69,143.41,143.4,3.61308]
[1728392355296,10.69,143.41,143.4,0.12518]
[1728392355493,17.68076761,143.41,143.39,0.12502]
[1728392355698,15.55,143.4,143.39,0.12502]
[1728392355898,3.41963834,143.43,143.4,3.4879]
[1728392356103,15.55,143.41,143.39,0.12502]
[1728392356500,10.69,143.4,143.39,0.12502]
[1728392357801,14.1779,143.4,143.39,0.12502]
[1728392359310,14.1779,143.4,143.33,0.12502]
[1728392359609,10.69,143.37,143.33,0.12502]
[1728392360407,10.69,143.37,143.36,3.4889]
[1728392360704,10.69,143.38,143.33,10.81502]
[1728392360950,10.69,143.38,143.33,0.12502]
[1728392361207,10.69,143.37,143.33,0.12502]
[1728392361403,10.69,143.38,143.33,0.12502]
[1728392361596,10.69,143.38,143.37,3.4887]
[1728392362204,10.69,143.38,143.33,0.12502]
[1728392362408,4.86,143.39,143.33,0.12502]
[1728392362409,10.69,143.36,143.33,0.12502]
[1728392362804,10.69,143.36,143.35,3.489]
[1728392363505,10.69,143.36,143.33,0.12502]
[1728392363506,10.69,143.37,143.36,3.4889]
[1728392366903,10.69,143.37,143.35,3.489]
[1728392367110,10.69,143.36,143.35,3.489]
[1728392368915,4.86,143.39,143.33,0.12502]
[1728392369117,10.69,143.34,143.19,10.4788]
[1728392369318,4.86,143.39,143.19,10.4788]
[1728392369319,4.86,143.33,143.24,10.69]
[1728392369523,10.69,143.29,143.28,3.4908]
[1728392369916,10.69,143.29,143.23,10.69]
[1728392369917,10.69,143.29,143.22,4.1351]
[1728392370115,10.69,143.29,143.24,10.69]
[1728392370319,10.69,143.29,143.23,10.69]
[1728392370620,10.69,143.29,143.22,4.1351]
[1728392370919,10.69,143.29,143.23,10.69]
[1728392371415,10.69,143.29,143.28,3.4908]
[1728392371623,30.69,143.28,143.21,0.12502]
[1728392371820,4.86,143.27,143.21,0.12502]
[1728392372027,4.86,143.26,143.25,3.4915]
[1728392372323,10.69,143.26,143.25,3.4915]
[1728392372625,35.55,143.28,143.27,3.4911]
[1728392372816,10.69,143.28,143.23,10.69]
[1728392373132,10.69,143.27,143.21,4.98502]
[1728392373414,10.69,143.27,143.22,10.69]
[1728392374436,10.69,143.27,143.26,3.4913]
[1728392376119,3.65284193,143.33,143.23,10.69]
[1728392376326,8.3499,143.32,143.28,3.4906]
[1728392376526,10.69,143.29,143.28,3.4906]
[1728392377024,10.69,143.3,143.29,3.4904]
[1728392377218,15.55,143.3,143.29,3.4904]
[1728392378211,4.86,143.3,143.29,3.4904]
[1728392378411,15.55,143.3,143.29,3.4904]
[1728392380250,4.86,143.3,143.29,3.4904]
[1728392380522,15.55,143.3,143.29,3.4904]
[1728392380926,10.69,143.3,143.29,3.4904]
[1728392386833,10.69,143.3,143.27,3.4909]
[1728392387031,10.69,143.29,143.26,1.3265]
[1728392387226,8.5702,143.31,143.28,3.4906]
[1728392387227,10.69,143.3,143.28,3.4906]
[1728392387631,10.69,143.3,143.26,1.3265]
[1728392389030,10.69,143.27,143.22,10.69]
[1728392389234,10.69,143.27,143.22,12.0917]
[1728392389635,10.69,143.27,143.26,3.4912]
[1728392390627,10.69,143.27,143.26,3.4913]
[1728392392641,5.08,143.28,143.22,12.0917]
[1728392392841,15.77,143.28,143.27,3.4911]
[1728392394238,5.08,143.28,143.27,3.4911]
[1728392394440,1.44682,143.33,143.3,3.4902]
[1728392394441,3.61472,143.33,143.3,3.4902]
[1728392394638,10.69,143.31,143.3,3.4902]
[1728392395054,15.77,143.31,143.3,3.4902]
[1728392395442,15.77,143.31,143.23,5.08]
[1728392395642,5.08,143.31,143.29,3.4905]
[1728392395945,10.69,143.3,143.24,10.69]
[1728392396143,10.69,143.3,143.25,2.7461]
[1728392396345,10.69,143.31,143.3,3.4904]
[1728392400046,5.08,143.32,143.3,3.4904]
[1728392400247,10.69,143.31,143.3,3.4904]
[1728392400556,10.69,143.31,143.26,10.69]
[1728392400951,5.08,143.32,143.27,10.69]
[1728392401153,15.77,143.32,143.31,3.4901]
[1728392401456,10.69,143.32,143.31,3.4901]
[1728392402151,10.69,143.32,143.3,3.4902]
[1728392402350,3.52862651,143.32,143.23,3.46265457]
[1728392402647,5.20502,143.33,143.23,3.46265457]
[1728392402648,10.69,143.25,143.23,3.4919]
[1728392403246,5.08,143.26,143.23,3.4919]
[1728392403443,15.77,143.26,143.25,3.4916]
[1728392403646,15.77,143.26,143.21,10.81502]
[1728392404055,10.69,143.25,143.21,0.12502]
[1728392404848,10.69,143.25,143.23,3.4919]
[1728392406455,10.69,143.24,143.23,3.4919]
[1728392406852,10.69,143.24,143.22,3.4921]
[1728392407665,10.69,143.24,143.21,0.12502]
[1728392407866,10.69,143.24,143.23,3.4921]
[1728392408471,10.69,143.26,143.25,3.4916]
[1728392408684,15.77,143.26,143.21,10.81502]
[1728392408855,10.69,143.26,143.21,0.12502]
[1728392409170,10.69,143.25,143.24,3.4918]
[1728392412474,10.69,143.25,143.21,0.12502]
[1728392412475,10.69,143.25,143.23,3.4919]
[1728392412666,5.08,143.27,143.23,3.4919]
[1728392412667,10.69,143.24,143.23,3.4919]
[1728392415160,10.69,143.24,143.22,3.4922]
[1728392415386,10.69,143.23,143.22,3.4922]
[1728392417678,5.1,143.24,143.21,0.12502]
[1728392417866,10.69,143.22,143.21,0.12502]
[1728392419667,10.69,143.22,143.21,3.61752]
[1728392423177,10.69,143.22,143.21,0.12502]
[1728392424278,14.1823,143.22,143.21,0.12502]
[1728392428486,19.2823,143.22,143.21,0.12502]
[1728392428880,3.45983652,143.24,143.21,0.12502]
[1728392428881,3.492,143.24,143.21,3.61752]
[1728392429205,10.69,143.22,143.21,3.61752]
[1728392430682,5.1,143.23,143.21,0.12502]
[1728392431193,5.1,143.25,143.24,3.4918]
[1728392431398,5.1,143.26,143.21,10.81502]
[1728392431585,5.1,143.28,143.22,12.1253]
[1728392431788,10.69,143.27,143.26,3.4911]
[1728392431989,10.69,143.27,143.22,12.1253]
[1728392432194,10.69,143.27,143.22,1.4353]
[1728392432499,10.69,143.25,143.22,1.4353]
[1728392433193,10.69,143.25,143.24,3.4918]
[1728392435300,10.69,143.25,143.23,3.4919]
[1728392435506,10.69,143.24,143.21,0.12502]
[1728392436007,10.69,143.24,143.23,3.4921]
[1728392437704,10.69,143.25,143.24,3.4918]
[1728392438504,15.79,143.26,143.25,3.4914]
[1728392440015,10.69,143.26,143.21,0.12502]
[1728392440213,10.69,143.25,143.22,3.4923]
[1728392440412,10.69,143.25,143.21,0.12502]
[1728392440931,10.69,143.25,143.23,3.4918]
[1728392441313,10.69,143.25,143.21,0.12502]
[1728392441513,10.69,143.25,143.24,3.4918]
[1728392441717,10.69,143.25,143.21,0.12502]
[1728392441915,10.69,143.25,143.23,3.4918]
[1728392442518,10.69,143.24,143.23,3.4918]
[1728392445415,10.69,143.24,143.21,0.12502]
[1728392448417,10.69,143.24,143.22,3.4922]
[1728392448817,10.69,143.23,143.21,3.61742]
[1728392450218,10.69,143.23,143.21,0.12502]
[1728392450423,10.69,143.23,143.22,3.4923]
[1728392452017,8.5918,143.24,143.21,3.61752]
[1728392452327,10.69,143.23,143.21,0.12502]
[1728392452723,10.69,143.23,143.22,3.4921]
[1728392454024,15.79,143.24,143.21,0.12502]
[1728392454216,15.79,143.24,143.23,3.4921]
[1728392454624,1.4407,143.3,143.21,0.12502]
[1728392454831,10.69,143.27,143.26,3.4913]
[1728392455624,10.69,143.27,143.25,3.4915]
[1728392455823,10.69,143.27,143.22,10.69]
[1728392455824,15.79,143.27,143.22,10.69]
[1728392456219,15.79,143.27,143.25,3.4915]
[1728392458831,15.79,143.27,143.26,3.4913]
[1728392459927,15.79,143.27,143.21,0.12502]
[1728392460136,10.69,143.22,143.21,0.12502]
[1728392460635,14.1823,143.22,143.21,0.12502]
[1728392466336,19.2823,143.22,143.21,0.12502]
[1728392469234,19.2823,143.22,143.15,0.12502]
[1728392469235,3.4931,143.19,143.15,0.12502]
[1728392469551,10.69,143.18,143.15,0.12502]
[1728392470234,10.69,143.18,143.16,3.4936]
[1728392471134,8.5931,143.19,143.15,0.12502]
[1728392471327,5.1,143.19,143.18,3.4933]
[1728392471524,3.4926,143.21,143.15,0.12502]
[1728392471525,5.1,143.21,143.17,10.69]
[1728392471725,10.69,143.2,143.15,0.12502]
[1728392471933,14.1831,143.19,143.15,3.61892]
[1728392473341,14.1831,143.19,143.16,3.4937]
[1728392473536,3.4931,143.19,143.16,3.4937]
[1728392473739,5.1,143.18,143.15,0.12502]
[1728392474132,5.1,143.18,143.16,3.4936]
[1728392474629,1.3981,143.25,143.15,10.81502]
[1728392474840,10.69,143.21,143.16,10.69]
[1728392475046,5.1,143.2,143.15,10.81502]
[1728392475427,10.69,143.19,143.17,3.4933]
[1728392475629,14.1831,143.19,143.17,3.4933]
[1728392475831,10.69,143.19,143.17,3.4933]
[1728392477036,14.1832,143.19,143.17,3.4933]
[1728392477638,14.1832,143.19,143.16,3.4936]
[1728392478144,14.1834,143.18,143.16,3.4936]
[1728392479026,14.1834,143.18,143.15,0.12502]
[1728392479238,14.1834,143.18,143.15,3.61892]
[1728392479540,3.4936,143.17,143.15,3.61892]
[1728392480441,3.4936,143.17,143.15,0.12502]
[1728392480826,10.69,143.18,143.15,0.12502]
[1728392481537,3.4936,143.17,143.15,0.12502]
[1728392481839,10.69,143.18,143.15,0.12502]
[1728392482145,14.1834,143.18,143.15,3.61902]
[1728392482729,10.69,143.18,143.15,0.12502]
[1728392482929,5.16,143.18,143.15,0.12502]
[1728392483530,8.6534,143.18,143.15,3.61882]
[1728392483938,14.1831,143.19,143.16,3.4937]
[1728392484142,5.16,143.18,143.16,3.4937]
[1728392484641,5.16,143.18,143.15,0.12502]
[1728392484838,5.16,143.18,143.15,3.61892]
[1728392485434,14.1832,143.19,143.15,0.12502]
[1728392485633,10.69,143.18,143.15,0.12502]
[1728392485830,14.1834,143.18,143.15,0.12502]
[1728392486234,14.1834,143.18,143.15,3.61892]
[1728392487345,10.69,143.18,143.15,3.61892]
[1728392487548,10.69,143.18,143.16,3.4937]
[1728392489541,19.3432,143.19,143.16,3.4937]
[1728392489747,5.16,143.18,143.16,3.4937]
[1728392490060,5.16,143.19,143.18,3.4933]
[1728392490439,10.69,143.2,143.15,10.81502]
[1728392490646,15.85,143.2,143.15,10.81502]
[1728392490944,3.4923,143.23,143.16,10.69]
[1728392491141,76.8381,143.25,143.15,0.12502]
[1728392491142,10.69,143.24,143.19,10.69]
[1728392491452,2.837,143.26,143.15,0.12502]
[1728392491453,10.69,143.26,143.2,10.69]
[1728392491755,5.16,143.25,143.2,10.69]
[1728392492344,19.3417,143.25,143.22,3.4922]
[1728392493747,5.16,143.25,143.23,3.492]
[1728392493949,15.85,143.25,143.23,3.492]
[1728392496256,19.3417,143.25,143.23,3.492]
[1728392497059,14.1818,143.24,143.22,3.4921]
[1728392497249,10.69,143.24,143.22,3.4921]
[1728392499652,8.6517,143.25,143.22,3.4921]
[1728392499854,15.85,143.25,143.23,3.4921]
[1728392500255,10.69,143.25,143.23,3.4921]
[1728392500564,15.83,143.25,143.24,3.4918]
[1728392501260,10.69,143.25,143.24,3.4918]
[1728392501456,10.81502,143.27,143.25,3.4914]
[1728392501658,5.14,143.26,143.25,3.4914]
[1728392502157,0.12502,143.27,143.26,3.4913]
[1728392502758,0.12502,143.27,143.26,14.1813]
[1728392502959,5.14,143.31,143.3,3.4904]
[1728392503555,96.64611511,143.32,143.3,3.4904]
[1728392503977,5.26502,143.33,143.3,3.4904]
[1728392504159,15.95502,143.33,143.31,3.4901]
[1728392504464,10.69,143.32,143.27,10.69]
[1728392504653,15.95502,143.33,143.3,3.4903]
[1728392504854,15.95502,143.33,143.28,10.69]
[1728392505660,15.95502,143.33,143.31,3.49]